bitfinex/quotes_ETHUSD_20260107
["timestamp","ask_amount","ask_price","bid_price","bid_amount"]
[1767822825161,0.002,3150.0,3149.9,0.001]
[1767822825361,0.41481065,3150.0,3149.6,0.001]
[1767822825659,0.002,3150.0,3149.6,0.001]
[1767822834992,0.002,3150.0,3149.6,0.95062457]
[1767822836997,0.002,3150.0,3149.9,0.001]
[1767822842300,0.002,3150.0,3149.6,0.95062457]
[1767822842598,0.002,3150.0,3149.6,0.001]
[1767822848603,0.002,3150.0,3149.9,0.001]
[1767822859808,0.002,3150.0,3149.6,0.91409014]
[1767822860437,0.90898446,3150.0,3149.6,0.001]
[1767822865351,0.002,3150.0,3149.6,0.001]
[1767822871962,0.002,3150.0,3149.9,0.001]
[1767822872164,0.49364366,3150.0,3149.6,0.001]
[1767822872352,0.002,3150.0,3149.6,0.001]
[1767822878867,0.95203272,3150.0,3149.2,0.97449486]
[1767822881178,3.17470395,3149.9,3149.2,0.97449486]
[1767822881363,4.12473667,3149.9,3149.2,0.97449486]
[1767822881667,0.95003272,3149.4,3147.4,3.1772061]
[1767822881986,0.95003272,3149.0,3147.8,0.97449486]
[1767822882182,0.95003272,3149.0,3147.9,0.97549486]
[1767822882984,0.95003272,3149.0,3148.2,0.97449486]
[1767822883184,4.00872324,3148.9,3148.2,0.97449486]
[1767822883488,4.00872324,3148.9,3148.3,0.97449486]
[1767822884261,0.833,3148.9,3148.3,0.97449486]
[1767822885189,1.78303272,3148.9,3148.3,0.97449486]
[1767822886894,0.833,3148.9,3148.3,0.97449486]
[1767822887870,4.00871243,3148.9,3148.3,0.97449486]
[1767822888197,0.833,3148.9,3148.3,0.97449486]
[1767822889184,4.0087326,3148.9,3148.3,0.97449486]
[1767822891986,3.1756113,3149.0,3148.3,0.97449486]
[1767822892190,0.833,3148.9,3148.3,0.97449486]
[1767822893302,0.834,3148.8,3148.3,0.97449486]
[1767822895404,0.002,3148.6,3148.3,0.97449486]
[1767822904814,0.002,3148.6,3148.4,0.91507129]
[1767822906326,0.836,3148.9,3148.5,0.91507129]
[1767822907127,0.002,3148.9,3148.5,0.91507129]
[1767822907823,0.002,3148.6,3148.5,0.91507129]
[1767822908024,0.002,3148.6,3148.5,1.3242082]
[1767822908223,0.002,3148.9,3148.5,1.3242082]
[1767822908422,0.002,3148.9,3148.6,0.91507129]
[1767822910505,0.002,3148.9,3148.7,0.91507129]
[1767822914523,0.002,3148.9,3148.7,4.09097462]
[1767822916049,0.90086259,3149.6,3148.9,0.91507129]
[1767822916357,0.834,3149.5,3148.9,0.91507129]
[1767822916651,1.73486259,3149.5,3148.9,0.91507129]
[1767822918931,1.73486259,3149.5,3148.9,4.09078211]
[1767822919433,1.73486259,3149.5,3148.9,0.91507129]
[1767822920055,0.002,3149.2,3148.9,0.91507129]
[1767822925170,0.002,3149.2,3148.7,3.17587335]
[1767822925333,0.002,3149.2,3148.8,0.91507129]
[1767822926261,0.002,3149.2,3148.9,0.03175712]
[1767822927163,0.002,3149.2,3148.8,0.91507129]
[1767822927363,0.002,3149.2,3148.9,4.09078344]
[1767822927569,0.90086259,3149.8,3149.0,0.94682739]
[1767822927757,0.834,3149.7,3149.1,0.91507129]
[1767822929362,0.834,3149.7,3149.2,4.09048091]
[1767822929564,0.834,3149.7,3149.2,0.91507129]
[1767822930357,0.90086259,3149.8,3149.2,0.91507129]
[1767822930575,0.834,3149.7,3149.2,1.71466355]
[1767822930865,0.90286259,3150.0,3149.3,0.91507129]
[1767822931072,0.834,3149.8,3149.3,0.91507129]
[1767822931554,0.90286259,3150.0,3149.3,4.09033039]
[1767822931759,0.834,3149.8,3149.3,4.09033039]
[1767822932059,0.834,3149.8,3149.3,4.89686911]
[1767822932280,0.002,3149.4,3149.3,4.89686911]
[1767822932567,0.002,3149.7,3149.3,1.72161001]
[1767822933058,0.002,3149.7,3149.3,4.89690942]
[1767822934685,0.002,3149.7,3149.3,1.72161001]
[1767822934976,0.002,3149.7,3149.3,0.91507129]
[1767822936667,0.002,3149.7,3149.3,4.09037342]
[1767822938260,0.002,3149.7,3148.8,3.17578715]
[1767822938261,0.002,3149.7,3149.4,0.93888144]
[1767822945058,0.002,3149.7,3149.2,0.93888144]
[1767822946987,0.002,3149.7,3148.9,0.94704113]
[1767822947201,0.002,3149.7,3149.1,0.93888144]
[1767822947575,0.002,3149.7,3149.2,4.11429106]
[1767822949294,0.002,3149.7,3148.8,0.93888144]
[1767822949295,0.95438256,3149.7,3148.8,0.93888144]
[1767822949502,0.95438256,3149.7,3148.6,0.93888144]
[1767822949807,0.95238256,3149.6,3148.6,4.1148307]
[1767822950102,0.95238256,3149.4,3148.7,3.17591386]
[1767822950467,0.95238256,3149.4,3148.7,4.1147953]
[1767822955701,0.95238256,3149.4,3148.7,7.29070916]
[1767822955885,0.95238256,3149.4,3148.8,0.93888144]
[1767822956205,0.95238256,3149.4,3149.0,0.001]
[1767822958600,1.78538256,3149.5,3149.0,0.001]
[1767822959200,0.95238256,3149.4,3149.0,0.001]
[1767822975587,0.833,3149.5,3149.0,0.001]
[1767822975791,0.833,3149.5,3149.0,0.91853084]
[1767822979120,1.3249507,3149.5,3149.3,9.5e-07]
[1767822982838,4.50006644,3149.5,3149.3,9.5e-07]
[1767822983037,0.90949399,3149.4,3149.0,0.001]
[1767822983222,0.54095604,3149.3,3149.0,0.001]
[1767822983532,0.002,3149.7,3149.0,0.91853084]
[1767822983730,0.002,3149.7,3149.2,0.91753084]
[1767822985831,0.002,3149.7,3149.3,0.91753084]
[1767822989036,0.002,3149.7,3149.5,0.91753084]
[1767822991244,0.002,3149.7,3149.5,4.09256249]
[1767822992552,0.002,3149.7,3149.6,0.93976348]
[1767822993338,0.002,3149.7,3149.6,4.11476983]
[1767822993965,0.835,3150.0,3149.6,3.17500635]
[1767823001950,0.835,3150.0,3149.7,0.93976348]
[1767823003935,0.835,3150.0,3149.7,4.11466173]
[1767823005758,0.835,3150.0,3149.7,0.93976348]
[1767823006052,0.002,3150.0,3149.7,0.93976348]
[1767823006430,0.002,3150.0,3149.5,4.11484915]
[1767823006618,0.002,3150.0,3149.5,4.52633407]
[1767823006819,0.002,3150.0,3149.6,3.17500635]
[1767823007752,0.002,3150.0,3149.6,4.11476983]
[1767823007942,0.002,3150.0,3149.7,0.93976348]
[1767823008253,0.002,3150.2,3149.8,0.93976348]
[1767823008546,0.002,3150.2,3149.9,0.93976348]
[1767823010122,0.002,3150.2,3150.0,0.93976348]
[1767823011462,0.002,3150.2,3149.8,3.90371979]
[1767823011922,0.002,3150.2,3149.9,3.1747037]
[1767823013851,0.94498796,3150.2,3149.9,3.1747037]
[1767823016956,0.94498796,3150.2,3149.8,3.90370529]
[1767823018826,0.002,3150.2,3149.8,3.90370529]
[1767823020383,0.002,3150.2,3149.5,0.41148492]
[1767823020384,0.94498796,3150.2,3149.6,3.17493504]
[1767823020533,0.94298796,3150.1,3149.3,3.1752433]
[1767823020733,0.94298796,3150.1,3149.4,3.17520321]
[1767823021241,0.94298796,3150.1,3149.3,4.11507227]
[1767823021426,0.94298796,3150.1,3149.4,0.93976348]
[1767823021830,0.002,3150.2,3149.4,0.93976348]
[1767823022127,0.833,3150.5,3149.5,0.95738536]
[1767823023359,0.833,3150.5,3149.7,0.95738536]
[1767823023652,4.00710403,3150.5,3149.7,0.95738536]
[1767823024356,0.9335256,3150.4,3149.7,0.95738536]
[1767823025242,0.9335256,3150.4,3149.5,4.13244634]
[1767823025762,0.9335256,3150.3,3149.5,4.13244634]
[1767823027255,0.9335256,3150.3,3149.6,0.95738536]
[1767823027574,0.9335256,3150.3,3149.8,0.001]
[1767823027774,0.002,3150.0,3149.8,0.001]
[1767823041786,0.9355256,3150.0,3149.8,0.001]
[1767823041991,0.9355256,3150.0,3149.2,4.13273144]
[1767823041992,0.9335256,3149.9,3149.2,4.13273144]
[1767823042152,0.9335256,3149.9,3149.3,0.95738536]
[1767823042479,0.002,3150.0,3149.4,0.95738536]
[1767823043287,0.9355256,3150.0,3149.4,0.95738536]
[1767823043583,0.002,3150.0,3149.4,0.95738536]
[1767823047162,0.833,3149.9,3149.0,0.95838536]
[1767823047361,0.9335256,3149.8,3149.0,0.001]
[1767823047587,0.9335256,3149.6,3149.0,0.001]
[1767823047984,4.10863275,3149.5,3149.0,0.001]
[1767823049497,0.9335256,3149.4,3149.0,0.001]
[1767823050466,0.9335256,3149.6,3149.0,0.001]
[1767823051306,0.9335256,3149.6,3149.3,0.001]
[1767823051596,1.67952072,3149.6,3149.3,0.001]
[1767823054195,4.85455845,3149.6,3149.3,0.001]
[1767823054707,0.17665256,3149.7,3149.3,0.97598877]
[1767823054886,0.94779026,3150.5,3149.5,0.97498877]
[1767823055092,0.835,3150.3,3149.5,0.97498877]
[1767823055266,0.94779026,3149.9,3149.3,0.001]
[1767823055467,0.94779026,3150.1,3149.3,0.97598877]
[1767823055797,0.835,3150.3,3149.3,0.97598877]
[1767823056496,0.94779026,3150.2,3149.3,0.97598877]
[1767823056696,0.835,3150.3,3149.3,0.97598877]
[1767823056870,0.835,3150.3,3149.5,0.97498877]
[1767823057194,0.835,3150.3,3149.7,0.97498877]
[1767823057581,0.002,3150.3,3149.7,0.97498877]
[1767823057777,0.002,3150.3,3149.6,0.73254047]
[1767823057778,0.002,3150.3,3150.0,0.97498877]
[1767823057969,0.002,3150.6,3150.3,0.97498877]
[1767823058170,0.002,3150.6,3149.7,0.97498877]
[1767823058372,0.002,3150.6,3149.7,1.14574169]
[1767823058872,0.002,3150.6,3149.9,0.97498877]
[1767823061304,0.002,3150.6,3150.0,6.34920634]
[1767823061603,0.002,3150.6,3150.1,0.97498877]
[1767823062706,0.002,3150.6,3150.2,4.14939039]
[1767823062908,0.002,3150.3,3150.2,4.14939039]
[1767823063278,0.002,3150.6,3150.2,4.14939039]
[1767823063480,0.002,3150.6,3150.3,0.97498877]
[1767823065109,0.002,3150.6,3150.3,4.1492707]
[1767823065407,0.002,3150.6,3150.3,0.97498877]
[1767823067397,0.002,3150.6,3150.2,3.17436572]
[1767823067623,0.002,3150.6,3150.3,3.17425778]
[1767823069906,0.002,3150.6,3150.4,0.97498877]
[1767823072699,0.002,3150.8,3150.4,4.14916415]
[1767823073503,0.002,3150.8,3150.4,3.17417538]
[1767823075213,0.002,3150.8,3150.3,4.88161944]
[1767823077588,0.002,3150.8,3150.4,0.97498877]
[1767823078292,0.002,3150.8,3150.3,3.90663067]
[1767823078914,0.002,3150.8,3150.3,4.88161944]
[1767823080918,0.94979026,3150.8,3149.9,0.97498877]
[1767823081127,0.94979026,3150.8,3150.1,3.17442918]
[1767823082828,0.94979026,3150.8,3150.0,0.99655558]
[1767823083634,0.002,3150.8,3150.0,0.99655558]
[1767823084804,0.002,3150.8,3150.2,0.99655558]
[1767823085001,0.002,3150.8,3150.3,0.99655558]
[1767823086099,0.002,3150.8,3150.4,0.001]
[1767823086521,0.92329177,3150.8,3150.4,0.001]
[1767823091834,0.002,3150.8,3150.4,0.001]
[1767823092024,0.002,3150.8,3150.4,0.99755558]
[1767823093412,0.002,3150.8,3150.4,4.1717548]
[1767823093610,0.002,3150.8,3150.4,0.99755558]
[1767823094510,0.002,3150.8,3150.4,4.1717507]
[1767823095034,0.002,3150.8,3150.5,0.99655558]
[1767823097108,0.002,3150.9,3150.6,0.99655558]
[1767823099539,0.002,3150.9,3150.6,4.1705372]
[1767823100341,0.002,3150.9,3150.6,0.99655558]
[1767823102242,0.002,3150.9,3150.6,4.1705379]
[1767823102535,0.002,3150.9,3150.6,0.99655558]
[1767823108338,0.002,3150.9,3150.6,4.17050801]
[1767823108553,0.002,3150.9,3150.6,0.99655558]
[1767823108758,0.002,3151.0,3150.6,0.99655558]
[1767823109052,0.002,3151.0,3150.7,0.99655558]
[1767823109615,0.002,3151.0,3150.5,3.17404982]
[1767823109820,0.92329177,3151.0,3150.6,3.173979]
[1767823110019,0.92329177,3151.0,3150.5,3.8089628]
[1767823110432,0.002,3151.0,3150.6,0.99655558]
[1767823111018,0.002,3151.0,3150.6,4.17054301]
[1767823111217,0.002,3151.0,3150.6,4.17055157]
[1767823112677,0.002,3151.0,3150.6,4.96861152]
[1767823113149,0.002,3151.3,3150.7,0.90198649]
[1767823113345,0.002,3151.3,3150.8,3.17379713]
[1767823113740,0.002,3151.3,3150.7,4.07583437]
[1767823114447,0.002,3151.3,3150.8,0.90198649]
[1767823114947,0.002,3151.3,3150.8,1.70677552]
[1767823115532,0.002,3151.3,3150.8,4.88051823]
[1767823116443,0.002,3151.3,3150.9,0.90198649]
[1767823118951,0.002,3151.4,3150.9,4.07564206]
[1767823119450,0.002,3151.4,3150.9,0.90198649]
[1767823119936,0.002,3151.4,3150.9,4.56371917]
[1767823120138,0.002,3151.0,3150.9,4.56371917]
[1767823120448,0.002,3151.3,3150.9,4.56371917]
[1767823120756,0.002,3151.3,3151.0,0.90198649]
[1767823121436,0.002,3151.4,3151.0,0.90198649]
[1767823121959,0.002,3151.4,3151.0,4.07557364]
[1767823122175,0.002,3151.4,3151.0,1.75620609]
[1767823122832,0.002,3151.4,3151.1,0.90198649]
[1767823130182,0.002,3151.4,3151.0,4.07551344]
[1767823130750,0.002,3151.4,3150.9,1.39004073]
[1767823130963,0.99007735,3151.4,3150.9,0.48805424]
[1767823131258,0.99007735,3151.4,3150.8,0.90198649]
[1767823131477,0.002,3151.4,3150.8,0.90198649]
[1767823131849,0.002,3151.1,3150.8,0.90198649]
[1767823132151,0.002,3151.1,3150.6,0.90198649]
[1767823133665,0.002,3151.1,3150.7,0.90198649]
[1767823133863,0.002,3151.1,3150.7,1.30958387]
[1767823134075,0.002,3151.1,3150.7,0.90198649]
[1767823134655,0.99007735,3151.1,3150.4,0.001]
[1767823135065,0.98807735,3151.0,3150.4,0.001]
[1767823135270,0.98807735,3151.0,3149.8,0.833]
[1767823135485,0.98807735,3151.0,3149.8,1.73498649]
[1767823135658,0.98807735,3150.6,3149.8,4.90974081]
[1767823136055,0.98807735,3150.6,3149.8,4.07674081]
[1767823136371,3.3560596,3150.9,3149.9,0.90198649]
[1767823136372,0.98807735,3150.9,3149.9,0.90198649]
[1767823137488,0.98807735,3150.8,3150.1,0.90198649]
[1767823139567,0.98807735,3150.8,3150.1,4.07645983]
[1767823139781,3.1736589,3151.0,3150.1,4.88487278]
[1767823139986,0.99007735,3151.4,3150.6,0.90198649]
[1767823140464,0.98807735,3151.2,3150.6,0.90198649]
[1767823141089,0.98807735,3151.2,3150.4,0.833]
[1767823141291,0.98807735,3151.0,3150.4,0.833]
[1767823141664,0.98807735,3151.0,3150.3,0.90198649]
[1767823142099,0.98807735,3151.0,3150.3,4.07628314]
[1767823143798,0.98807735,3151.0,3150.4,0.001]
[1767823147697,0.91888901,3150.9,3150.4,0.001]
[1767823147997,0.91888901,3150.9,3150.4,0.49482449]
[1767823155484,0.91888901,3150.9,3150.7,0.001]
[1767823155674,0.91888901,3150.9,3150.4,0.001]
[1767823161608,0.91888901,3151.0,3150.4,0.001]
[1767823164316,1.51888901,3150.7,3150.4,0.001]
[1767823164489,1.51888901,3150.7,3150.5,0.31752952]
[1767823168018,0.6,3150.7,3150.5,0.31752952]
[1767823170519,0.6,3150.7,3150.4,0.93089543]
[1767823171433,0.6,3150.7,3150.4,0.001]
[1767823175432,0.6,3150.7,3150.4,0.98167192]
[1767823178353,1.59791174,3150.7,3150.0,0.98067192]
[1767823178645,0.99791174,3150.6,3150.0,1.16203911]
[1767823178807,0.99791174,3150.6,3150.0,0.98067192]
[1767823179233,0.99791174,3150.6,3150.0,4.15526495]
[1767823181238,0.99791174,3150.6,3150.0,0.98067192]
[1767823181925,0.99791174,3150.6,3150.0,4.1552606]
[1767823186447,0.6,3150.7,3150.0,4.1552606]
[1767823186759,0.6,3150.7,3150.1,0.98067192]
[1767823187059,1.07737483,3150.7,3150.1,0.98067192]
[1767823188359,4.25129208,3150.7,3150.1,0.98067192]
[1767823188925,5.24920382,3150.7,3150.1,0.98067192]
[1767823189428,5.24920199,3150.7,3150.1,0.98067192]
[1767823189629,0.99791174,3150.6,3149.9,0.98067192]
[1767823189829,0.99791174,3150.6,3150.0,0.98067192]
[1767823191857,0.99791174,3150.6,3149.6,0.98167192]
[1767823191858,0.99791174,3150.5,3149.6,0.98167192]
[1767823192026,0.99791174,3150.5,3149.6,0.98082265]
[1767823196054,0.99791174,3150.3,3149.6,0.98082265]
[1767823199059,4.17225389,3150.3,3149.6,0.98082265]
[1767823199664,4.17225389,3150.3,3149.3,0.98167192]
[1767823199665,0.00101655,3149.6,3149.3,0.98167192]
[1767823200774,0.98067192,3149.0,3148.8,0.98067192]
[1767823201065,0.98067192,3149.0,3148.5,0.833]
[1767823201066,4.15632694,3149.0,3148.0,0.98067192]
[1767823201268,4.67175081,3149.0,3148.2,0.98067192]
[1767823201435,8.84531757,3149.0,3148.2,0.98067192]
[1767823201635,0.97533787,3148.9,3148.2,0.98067192]
[1767823202446,4.67175081,3149.0,3148.2,0.98067192]
[1767823204052,7.84740583,3149.0,3148.2,0.98067192]
[1767823204364,0.88144758,3148.9,3148.2,0.98067192]
[1767823206175,5.02423472,3148.9,3148.2,0.98067192]
[1767823206360,3.69106778,3149.0,3148.2,0.98067192]
[1767823207071,3.69106778,3149.0,3148.2,0.97965537]
[1767823208170,0.96706996,3148.9,3148.2,0.97965537]
[1767823208378,0.96706996,3148.9,3148.0,0.833]
[1767823208379,0.96706996,3148.9,3147.9,0.94762373]
[1767823208556,0.96706996,3148.7,3147.9,0.94762373]
[1767823209141,0.96706996,3148.7,3146.9,5.33120108]
[1767823209347,0.96706996,3148.7,3147.1,0.94662373]
[1767823209565,0.96706996,3148.4,3147.3,0.94662373]
[1767823209766,0.96706996,3148.2,3147.3,0.94662373]
[1767823210313,0.96706996,3148.2,3147.1,0.94662373]
[1767823210314,0.96706996,3148.0,3147.1,0.94662373]
[1767823210482,0.96706996,3147.8,3146.8,0.94662373]
[1767823210776,0.96706996,3147.6,3146.8,0.94662373]
[1767823212291,0.96706996,3148.5,3146.8,0.94662373]
[1767823212583,0.96706996,3148.3,3147.2,0.94662373]
[1767823212746,0.96706996,3148.1,3147.2,0.94662373]
[1767823213181,0.6,3148.0,3147.2,0.94662373]
[1767823214403,0.52789075,3148.0,3147.7,0.94662373]
[1767823214569,1.80106996,3148.6,3147.7,0.94662373]
[1767823214892,1.98117696,3148.6,3147.7,0.94662373]
[1767823215264,5.15720469,3148.6,3147.7,0.94662373]
[1767823215462,1.98117696,3148.6,3147.7,0.94662373]
[1767823215664,4.97688315,3148.8,3147.9,0.94662373]
[1767823216193,0.834,3148.9,3147.9,0.94662373]
[1767823216399,0.002,3148.7,3148.1,0.94662373]
[1767823218161,0.002,3148.7,3148.2,0.94662373]
[1767823218898,0.002,3148.7,3148.3,0.94662373]
[1767823220663,0.002,3148.7,3148.5,0.94662373]
[1767823221296,0.002,3149.0,3148.5,0.94662373]
[1767823226106,0.96706996,3148.9,3148.1,0.41232438]
[1767823226293,0.96706996,3148.9,3148.0,0.94662373]
[1767823227681,0.96706996,3148.9,3148.1,0.94662373]
[1767823228379,0.002,3148.7,3148.1,0.94662373]
[1767823229104,0.002,3148.7,3148.2,0.94662373]
[1767823229812,0.002,3148.7,3148.2,0.94542561]
[1767823231819,0.002,3148.7,3148.2,0.94423748]
[1767823234630,0.94080795,3148.6,3147.8,0.98963768]
[1767823235625,0.94080795,3148.4,3147.5,0.001]
[1767823235828,6.35223122,3148.5,3147.5,0.001]
[1767823235829,0.94080795,3148.2,3147.5,0.99063768]
[1767823236721,0.94080795,3148.2,3147.5,0.001]
[1767823237098,0.94080795,3148.2,3147.3,0.98963768]
[1767823237506,0.94080795,3148.0,3147.0,0.98963768]
[1767823237713,0.94080795,3147.9,3147.0,0.98963768]
[1767823238918,0.94080795,3147.9,3146.8,0.98963768]
[1767823239720,4.0108219,3147.8,3146.9,0.98963768]
[1767823239892,0.94080795,3147.7,3146.9,0.98963768]
[1767823240929,4.0108219,3147.8,3146.9,0.98963768]
[1767823241229,5.79053465,3147.8,3146.9,0.98963768]
[1767823241435,0.94080795,3147.7,3146.9,0.98963768]
[1767823241934,3.17702376,3147.6,3146.9,0.98963768]
[1767823242808,0.94080795,3147.5,3146.9,0.98963768]
[1767823243011,0.94080795,3147.5,3146.5,0.98963768]
[1767823243217,0.94080795,3147.3,3146.5,0.98963768]
[1767823244032,0.94080795,3147.2,3146.5,0.98963768]
[1767823246226,4.11824937,3147.2,3146.5,0.98963768]
[1767823247854,0.94080795,3147.1,3146.5,0.98963768]
[1767823248298,0.94080795,3147.1,3146.3,3.17827902]
[1767823248503,0.94080795,3147.1,3146.4,4.16784208]
[1767823248704,0.94080795,3147.1,3146.5,0.98963768]
[1767823249414,4.11836452,3147.1,3146.5,0.98963768]
[1767823249830,0.94080795,3147.1,3146.5,0.98963768]
[1767823250722,3.17743194,3147.2,3146.5,0.98963768]
[1767823251234,0.94080795,3147.1,3146.5,0.98963768]
[1767823252054,0.94080795,3147.1,3146.8,0.001]
[1767823252260,0.94080795,3147.2,3146.5,0.98963768]
[1767823253335,4.11833164,3147.2,3146.5,0.98963768]
[1767823253556,4.11833164,3147.2,3146.3,3.81397289]
[1767823253557,0.94080795,3147.1,3146.3,0.6356785]
[1767823253760,0.94080795,3147.1,3146.3,1.62531618]
[1767823254125,0.94080795,3147.1,3146.3,4.80364739]
[1767823254674,0.94080795,3147.1,3146.3,1.62531618]
[1767823254825,0.94080795,3147.0,3146.3,0.98963768]
[1767823255467,4.11846044,3147.0,3146.3,0.98963768]
[1767823256055,0.94080795,3146.9,3146.3,0.98963768]
[1767823258431,0.94080795,3146.8,3146.1,4.16813458]
[1767823258631,0.94080795,3146.8,3146.2,0.98963768]
[1767823258831,0.94080795,3146.8,3146.3,0.41681346]
[1767823260179,0.94080795,3146.7,3145.6,3.17903494]
[1767823260468,0.94080795,3146.7,3145.6,4.16863491]
[1767823260765,0.94080795,3146.7,3145.7,0.98963768]
[1767823261255,0.94080795,3146.7,3145.6,0.98963768]
[1767823261437,7.18976076,3146.8,3145.7,3.17893667]
[1767823261438,0.94080795,3146.5,3145.7,3.17893667]
[1767823262571,0.93138416,3146.4,3145.7,3.17893667]
[1767823263963,0.93138416,3146.4,3145.7,0.92366219]
[1767823264255,4.10944784,3146.6,3145.7,0.92366219]
[1767823264425,7.28754282,3146.6,3145.8,0.92366219]
[1767823264628,0.93138416,3146.5,3145.8,0.92366219]
[1767823266562,4.10955574,3146.5,3145.8,0.92366219]
[1767823266950,7.28772732,3146.5,3145.8,0.92366219]
[1767823267459,0.93138416,3146.4,3145.8,0.92366219]
[1767823268665,4.10970467,3146.4,3145.8,0.92366219]
[1767823269753,3.17832051,3146.4,3145.8,0.92366219]
[1767823270265,0.93138416,3146.3,3145.4,4.01319636]
[1767823270472,0.93138416,3146.3,3145.5,3.99074958]
[1767823270961,3.17832051,3146.4,3145.6,0.92366219]
[1767823270962,3.17843748,3146.2,3145.6,0.92366219]
[1767823272552,3.17843748,3146.2,3144.7,3.17988746]
[1767823272553,0.93138416,3146.1,3145.4,0.92366219]
[1767823272752,4.9647663,3147.3,3144.9,1.75766219]
[1767823272753,0.93138416,3145.9,3144.9,1.75766219]
[1767823272969,0.93138416,3146.1,3145.0,0.92366219]
[1767823273532,0.93138416,3146.5,3145.2,0.92366219]
[1767823274967,7.28785504,3146.4,3145.4,0.92366219]
[1767823275172,0.93138416,3146.3,3145.5,0.92366219]
[1767823276956,0.93138416,3146.3,3145.2,0.834]
[1767823277158,0.93138416,3146.1,3145.2,1.75766219]
[1767823277537,0.93138416,3146.1,3145.3,0.92366219]
[1767823277737,3.17843748,3146.2,3145.4,0.92366219]
[1767823277942,3.17843748,3146.2,3145.6,0.92366219]
[1767823278170,7.28825912,3146.2,3145.6,1e-08]
[1767823278372,0.93138416,3146.1,3145.5,0.002]
[1767823278674,0.93138416,3146.0,3145.2,0.92366219]
[1767823279055,3.17856886,3146.1,3145.4,0.92366219]
[1767823279250,3.17848088,3146.2,3145.4,0.92366219]
[1767823279450,3.17848088,3146.2,3145.6,0.92366219]
[1767823281445,0.93138416,3146.2,3145.6,0.92366219]
[1767823281865,0.93138416,3146.2,3145.3,0.92366219]
[1767823282577,0.93138416,3146.2,3145.4,0.92366219]
[1767823283385,0.93138416,3146.1,3145.4,0.92366219]
[1767823283681,0.93138416,3145.9,3145.1,1.75966219]
[1767823283859,0.93138416,3145.9,3145.2,0.92366219]
[1767823285675,0.93138416,3145.9,3145.1,0.002]
[1767823285886,4.11022579,3145.8,3145.1,0.92566219]
[1767823286483,0.93138416,3145.7,3145.1,1.41960088]
[1767823287047,0.93138416,3146.2,3145.2,0.92366219]
[1767823287568,0.93138416,3146.2,3145.4,0.92366219]
[1767823287771,0.93138416,3146.1,3145.4,0.92366219]
[1767823288081,0.93138416,3146.1,3145.5,0.41029284]
[1767823288279,0.93138416,3146.1,3145.5,1.33395503]
[1767823288681,0.93138416,3146.1,3145.5,0.92366219]
[1767823290071,4.10998039,3146.1,3145.5,0.92366219]
[1767823290383,0.93138416,3146.1,3145.5,0.92366219]
[1767823290580,0.001,3145.9,3145.5,0.92366219]
[1767823290982,0.001,3145.9,3145.1,0.49593869]
[1767823290983,0.001,3145.9,3145.6,0.92366219]
[1767823291480,0.001,3145.9,3145.3,0.92366219]
[1767823292077,0.001,3145.9,3145.4,0.94424757]
[1767823292275,0.001,3145.9,3145.4,4.12344294]
[1767823292589,0.001,3145.9,3145.4,0.94424757]
[1767823292797,1.00059072,3145.9,3145.2,0.54610335]
[1767823292968,1.00059072,3145.9,3145.3,0.19862896]
[1767823293163,1.00059072,3145.9,3145.2,0.54610335]
[1767823293506,1.00059072,3145.9,3145.1,0.002]
[1767823294581,0.99959072,3145.8,3145.1,0.94624757]
[1767823296095,0.99959072,3145.8,3145.1,0.002]
[1767823296494,0.99959072,3145.6,3145.1,0.002]
[1767823297365,1.41744406,3145.5,3145.1,0.002]
[1767823298784,0.99959072,3145.4,3145.1,0.002]
[1767823298980,0.99959072,3145.4,3144.8,0.001]
[1767823300801,0.99959072,3145.3,3144.8,0.001]
[1767823302683,0.99959072,3145.3,3145.1,0.002]
[1767823302865,1.73538932,3145.3,3144.8,0.001]
[1767823303266,0.99959072,3145.3,3144.8,0.001]
[1767823303980,0.99959072,3145.5,3144.8,0.94524757]
[1767823304483,0.99959072,3145.5,3144.6,0.94424757]
[1767823304862,0.99959072,3145.3,3144.5,0.834]
[1767823305067,0.99959072,3145.3,3144.5,1.77824757]
[1767823305268,0.99959072,3145.3,3144.5,4.95839159]
[1767823305874,0.41788366,3145.2,3144.6,0.94424757]
[1767823306195,1.41747438,3145.2,3144.6,0.94424757]
[1767823306391,0.99959072,3145.2,3144.6,0.94424757]
[1767823306797,4.1788366,3145.4,3144.6,0.94424757]
[1767823306993,4.1788366,3145.4,3144.7,0.94424757]
[1767823307371,0.99959072,3145.3,3144.7,0.94424757]
[1767823308396,0.99959072,3145.3,3143.6,3.78]
[1767823308600,0.99959072,3145.1,3144.0,0.20153082]
[1767823308771,0.99959072,3144.9,3144.0,0.20153082]
[1767823309326,6.88784116,3145.0,3144.1,0.20153082]
[1767823309327,0.99959072,3145.0,3144.1,0.20153082]
[1767823309468,0.99959072,3145.0,3144.2,0.20153082]
[1767823311820,0.99959072,3144.9,3144.2,0.20153082]
[1767823313407,0.99959072,3144.9,3144.1,0.73967748]
[1767823314122,0.99959072,3144.8,3144.1,0.73967748]
[1767823314842,0.99959072,3144.8,3143.9,0.20153082]
[1767823315124,0.99959072,3144.8,3144.5,0.002]
[1767823315456,0.99959072,3144.8,3144.1,0.002]
[1767823316223,0.99959072,3144.7,3144.1,0.002]
[1767823318428,4.17957112,3144.7,3144.1,0.002]
[1767823319924,0.99959072,3144.7,3144.1,0.002]
[1767823320128,0.99959072,3144.7,3144.1,0.34042863]
[1767823321928,0.92990249,3144.6,3144.1,0.34042863]
[1767823322130,0.92990249,3144.6,3144.1,0.002]
[1767823322429,0.92990249,3144.6,3143.7,0.20153082]
[1767823322630,3.18015582,3144.5,3143.7,0.20153082]
[1767823322814,0.92990249,3144.4,3143.7,0.20153082]
[1767823323015,0.92990249,3144.4,3143.7,3.72094471]
[1767823323217,0.92990249,3144.4,3143.7,0.53998547]
[1767823323421,0.92990249,3144.4,3143.7,0.20153082]
[1767823323817,0.92990249,3144.4,3143.7,3.38248831]
[1767823324435,0.92990249,3144.4,3143.7,0.20153082]
[1767823324835,0.92990249,3144.4,3143.7,3.38249136]
[1767823325238,3.17998235,3144.7,3143.5,3.18316475]
[1767823325239,0.92990249,3144.7,3143.5,0.20353082]
[1767823325405,0.92990249,3144.5,3143.7,0.20153082]
[1767823325610,0.92990249,3144.5,3143.5,0.20353082]
[1767823326438,0.94835168,3144.4,3143.5,0.002]